bitfinex/quotes_ETHUSD_20241203
["timestamp","ask_amount","ask_price","bid_price","bid_amount"]
[1733199830207,2.63184423,3655.7,3655.6,0.05158118]
[1733199830407,2.63184423,3655.7,3655.3,2.73574]
[1733199830735,2.63184423,3655.7,3655.4,3.53337]
[1733199830892,2.63184423,3655.7,3655.4,3.58501664]
[1733199831089,2.63184423,3655.7,3655.4,3.99925621]
[1733199831935,1.11988,3657.0,3655.9,0.7958]
[1733199832119,2.63184423,3656.3,3655.9,0.7958]
[1733199832811,2.63184423,3656.3,3656.0,0.05146856]
[1733199833012,2.63184423,3656.3,3656.1,2.73514]
[1733199833312,2.63184423,3656.3,3656.1,0.41229742]
[1733199833499,2.63184423,3656.3,3656.1,0.05132157]
[1733199834019,2.63184423,3656.3,3655.9,3.53104]
[1733199834227,2.63184423,3656.3,3656.2,0.05128885]
[1733199834412,2.63184423,3656.3,3655.9,3.53104]
[1733199834611,2.63184423,3656.3,3656.2,0.05128885]
[1733199834932,2.63184423,3656.3,3655.9,3.53104]
[1733199835230,2.63184423,3656.3,3656.0,0.353104]
[1733199835403,2.63184423,3656.3,3656.0,0.40445829]
[1733199836841,2.63184423,3656.3,3656.0,0.05135429]
[1733199837053,2.63184423,3656.3,3655.6,0.7842]
[1733199837213,2.63184423,3656.3,3656.1,0.04950202]
[1733199837539,2.63184423,3656.3,3655.6,0.7842]
[1733199838135,2.63184423,3656.3,3655.7,0.04963292]
[1733199838439,2.63184423,3656.3,3655.7,0.60997691]
[1733199839134,0.78,3655.8,3655.7,0.04963292]
[1733199839432,0.78,3655.8,3655.2,0.7825]
[1733199839600,0.78,3655.8,3655.7,0.04810176]
[1733199839796,3.41184423,3655.8,3654.9,0.7825]
[1733199839996,3.41184423,3655.8,3655.7,0.04810176]
[1733199840202,3.41184423,3655.8,3655.4,0.54496135]
[1733199840401,3.41184423,3655.8,3655.7,0.04810176]
[1733199840604,6.14722423,3655.8,3655.4,0.54496135]
[1733199840841,3.41184423,3655.8,3655.4,0.54496135]
[1733199841041,3.41184423,3655.8,3655.5,0.04816722]
[1733199841244,3.41184423,3655.8,3655.4,0.54496135]
[1733199841543,3.41184423,3655.8,3655.6,0.04813449]
[1733199841716,3.41184423,3655.8,3655.5,0.04816722]
[1733199841914,3.41184423,3655.8,3655.7,0.04810176]
[1733199842133,3.41184423,3655.8,3655.6,0.04813449]
[1733199842302,3.41184423,3655.8,3655.7,0.04810176]
[1733199843004,3.41184423,3655.8,3655.4,0.54496135]
[1733199843326,3.41184423,3655.8,3655.7,0.04810176]
[1733199843527,3.41184423,3655.8,3655.4,0.54496135]
[1733199843829,3.41184423,3655.8,3655.7,0.04810176]
[1733199844135,3.4050034,3655.8,3655.2,2.73582]
[1733199844340,3.4050034,3655.8,3655.3,0.273582]
[1733199844539,3.4050034,3655.8,3654.7,0.79]
[1733199844841,3.4050034,3655.8,3655.0,2.73591]
[1733199845933,3.4050034,3655.8,3655.3,0.54642474]
[1733199846136,6.1403834,3655.8,3655.3,0.54642474]
[1733199846353,6.1403834,3655.8,3654.7,3.52618]
[1733199846659,6.1403834,3655.8,3654.8,0.352618]
[1733199847267,0.7699,3654.8,3653.8,0.001368]
[1733199847422,2.63184423,3654.3,3653.8,0.001368]
[1733199847752,2.63184423,3654.3,3654.0,0.55069582]
[1733199848352,0.7699,3654.2,3654.0,0.55069582]
[1733199850849,0.7683,3654.5,3654.0,0.55069582]
[1733199851032,0.7683,3654.5,3654.1,0.04958128]
[1733199852220,3.39484423,3655.1,3654.3,2.7365]
[1733199852630,3.39484423,3655.1,3654.1,0.33385151]
[1733199852631,3.39484423,3655.1,3654.4,2.78588387]
[1733199853057,3.39484423,3655.1,3654.6,2.73627]
[1733199853263,0.8152,3655.4,3654.6,2.73627]
[1733199853432,0.8152,3655.4,3654.7,0.04922467]
[1733199853953,0.8152,3655.4,3654.5,3.53054]
[1733199854160,0.8152,3655.4,3654.8,0.04903642]
[1733199854365,0.8152,3655.4,3654.5,3.53054]
[1733199854518,0.8152,3655.4,3654.9,0.04900367]
[1733199854866,0.8152,3655.4,3655.0,0.04897093]
[1733199855021,0.8152,3655.4,3654.6,2.73625]
[1733199855354,0.8152,3655.4,3655.1,0.04893819]
[1733199855560,0.8152,3655.4,3654.6,2.73625]
[1733199855745,0.8152,3655.4,3655.2,0.04890545]
[1733199855949,0.8152,3655.4,3654.5,1.147254]
[1733199856118,2.63184423,3655.5,3655.3,0.04914703]
[1733199856323,2.63184423,3655.5,3655.2,0.7943]
[1733199856558,2.63184423,3655.5,3655.3,0.04913788]
[1733199856759,2.63184423,3655.5,3655.2,0.7943]
[1733199856987,2.63184423,3655.5,3655.3,0.04913788]
[1733199857162,2.63184423,3655.5,3655.2,0.7943]
[1733199857352,2.63184423,3655.5,3655.3,0.04913788]
[1733199857558,0.7878,3655.9,3655.2,0.7943]
[1733199857798,2.63184423,3655.7,3655.3,0.04913788]
[1733199857998,2.63184423,3655.7,3655.2,0.7943]
[1733199858300,2.63184423,3655.7,3655.4,0.04910515]
[1733199858495,2.63184423,3655.7,3655.3,0.04913788]
[1733199858694,2.63184423,3655.7,3655.5,0.04907242]
[1733199858897,2.63184423,3655.7,3655.4,0.04910515]
[1733199859068,2.63184423,3655.7,3655.6,0.04903968]
[1733199859274,2.63184423,3655.7,3655.2,0.7943]
[1733199859460,2.63184423,3655.7,3655.6,0.04903968]
[1733199859658,2.63184423,3655.7,3655.2,0.7943]
[1733199859888,2.63184423,3655.7,3655.6,0.04903968]
[1733199860071,2.63184423,3655.7,3655.2,3.53012]
[1733199860304,2.63184423,3655.7,3655.6,0.04903968]
[1733199860538,2.63184423,3655.7,3655.2,3.53012]
[1733199860832,2.63184423,3655.7,3655.0,2.73595]
[1733199861035,2.63184423,3655.7,3655.3,0.04913788]
[1733199861332,2.63184423,3655.7,3655.1,2.73589]
[1733199861549,2.63184423,3655.7,3655.4,0.04910515]
[1733199861830,2.63184423,3655.7,3655.5,0.04907242]
[1733199862204,2.63184423,3655.7,3655.6,0.04903968]
[1733199862410,2.63184423,3655.7,3654.9,3.50584]
[1733199862637,2.63184423,3655.7,3655.6,0.04903968]
[1733199862930,2.63184423,3655.7,3655.0,2.73596]
[1733199863091,2.63184423,3655.7,3655.6,0.04903968]
[1733199863296,2.63184423,3655.7,3655.4,0.55130763]
[1733199863519,2.63184423,3655.7,3655.6,0.04903968]
[1733199863721,2.63184423,3655.7,3655.5,0.04907242]
[1733199863933,2.63184423,3655.7,3655.6,0.04903968]
[1733199864296,2.63184423,3655.7,3655.4,0.55130763]
[1733199864532,2.63184423,3655.7,3655.6,0.04903968]
[1733199864688,2.63184423,3655.7,3655.5,0.04907242]
[1733199864889,2.63184423,3655.7,3655.4,0.55130763]
[1733199865131,2.63184423,3655.7,3655.6,0.04903968]
[1733199865728,2.63184423,3655.7,3655.4,0.55130763]
[1733199865927,2.63184423,3655.7,3655.6,0.04903968]
[1733199866137,2.63184423,3655.7,3655.5,0.04881178]
[1733199866331,2.63184423,3655.7,3655.6,0.04877905]
[1733199866537,3.74240865,3655.7,3655.6,0.04877905]
[1733199866713,3.99796791,3655.7,3655.4,0.55130763]
[1733199866896,3.74240865,3655.7,3655.4,0.55130763]
[1733199867098,3.74240865,3655.7,3654.7,2.7362]
[1733199867297,2.63184423,3655.3,3654.9,0.54999356]
[1733199867745,2.63184423,3655.3,3655.0,0.04872399]
[1733199867902,2.63184423,3655.1,3655.0,0.04872399]
[1733199868432,2.63184423,3655.1,3654.2,3.51204]
[1733199868639,2.63184423,3654.7,3654.6,0.54126872]
[1733199869238,2.63184423,3654.7,3654.6,0.59012369]
[1733199869610,2.63184423,3655.1,3654.6,3.32638369]
[1733199869809,2.63184423,3655.1,3654.6,3.65902206]
[1733199870010,2.63184423,3655.1,3654.6,0.92276206]
[1733199870208,2.63184423,3655.5,3654.9,2.73604]
[1733199870598,2.63184423,3655.5,3655.0,0.04872399]
[1733199871142,2.63184423,3655.5,3655.0,2.78469399]
[1733199871323,2.63184423,3655.5,3655.1,2.73583]
[1733199871558,0.8317,3656.1,3655.2,0.02735774]
[1733199871855,0.25570224,3656.2,3655.4,2.73567]
[1733199872163,0.25570224,3656.2,3655.3,0.8203]
[1733199872164,0.25570224,3656.2,3655.3,0.86892578]
[1733199872347,0.25570224,3656.2,3655.5,0.04856031]
[1733199872657,2.63184423,3656.3,3655.6,0.04852758]
[1733199873872,2.63184423,3656.3,3655.7,0.04849485]
[1733199874076,2.63184423,3656.3,3655.5,2.73553]
[1733199874238,2.63184423,3656.3,3655.8,0.04846212]
[1733199874438,2.63184423,3656.3,3655.5,2.73553]
[1733199874439,3.01909899,3656.3,3655.5,2.73553]
[1733199874635,3.01909899,3656.3,3655.9,0.0484294]
[1733199874837,3.01909899,3656.3,3655.5,2.73553]
[1733199875052,3.01909899,3656.3,3656.0,0.04839667]
[1733199875235,3.01909899,3656.3,3655.5,2.73553]
[1733199875435,2.63184423,3656.3,3656.1,0.04836395]
[1733199875661,2.63184423,3656.3,3655.5,2.73553]
[1733199875863,2.63184423,3656.3,3656.2,0.04833123]
[1733199876078,2.88742617,3656.3,3655.4,3.29278058]
[1733199876232,2.63184423,3656.3,3656.2,0.04833123]
[1733199876433,3.5072402,3656.3,3655.5,2.7356]
[1733199876761,3.25168565,3656.3,3655.5,2.7356]
[1733199876958,0.25556908,3656.2,3655.6,0.04852758]
[1733199877164,3.25168565,3656.3,3655.6,0.04852758]
[1733199878682,3.25168565,3656.3,3655.6,2.78398758]
[1733199878838,2.63184423,3656.3,3655.6,0.04852758]
[1733199879041,2.63184423,3656.3,3655.9,2.7353]
[1733199879239,2.63184423,3656.3,3655.9,3.5346]
[1733199879485,2.63184423,3656.3,3656.0,0.04839667]
[1733199879778,0.40885586,3656.9,3656.0,0.04839667]
[1733199879779,0.8271,3656.7,3656.0,0.04839667]
[1733199880151,1.08262927,3656.7,3656.0,2.78360667]
[1733199880761,0.8271,3656.7,3656.0,2.78360667]
[1733199881283,1.08272573,3656.7,3656.0,0.04839667]
[1733199881781,1.08272573,3656.7,3656.2,0.53623294]
[1733199882077,1.08272573,3656.7,3656.3,0.04805168]
[1733199882294,0.8271,3656.7,3656.2,0.53623294]
[1733199882443,1.08278711,3656.7,3656.4,0.04801896]
[1733199882643,1.08278711,3656.7,3656.2,0.53623294]
[1733199882857,1.08278711,3656.7,3656.5,0.04798625]
[1733199883087,1.08278711,3656.7,3656.2,0.53623294]
[1733199883402,1.08278711,3656.7,3656.3,0.04805168]
[1733199883562,1.08278711,3656.7,3656.2,0.53623294]
[1733199883901,2.63184423,3656.8,3656.3,0.04805168]
[1733199884193,2.63184423,3656.8,3656.2,0.53623294]
[1733199884488,2.63184423,3656.8,3656.3,0.04805168]
[1733199884856,2.63184423,3656.8,3656.2,0.53623294]
[1733199885054,2.63184423,3656.8,3656.4,0.04801896]
[1733199885359,2.63184423,3656.8,3656.5,0.04798625]
[1733199885672,2.63184423,3656.8,3656.2,0.53623294]
[1733199886193,2.63184423,3656.8,3656.3,0.04805168]
[1733199886379,2.63184423,3656.8,3656.2,0.53623294]
[1733199886567,2.63184423,3656.8,3656.3,0.04805168]
[1733199886895,2.63184423,3656.8,3656.2,0.53623294]
[1733199887192,2.63184423,3656.8,3656.3,0.0476312]
[1733199887395,2.63184423,3656.8,3656.2,0.53623294]
[1733199887603,2.63184423,3656.8,3656.3,0.0476312]
[1733199887897,0.25561689,3656.7,3656.2,0.53623294]
[1733199888197,2.63184423,3656.8,3656.3,2.7826112]
[1733199889290,0.02939818,3656.6,3656.3,2.7826112]
[1733199889703,0.02939818,3656.6,3656.4,2.7349]
[1733199890211,0.7606,3657.1,3656.2,0.53623294]
[1733199890212,0.7606,3657.1,3656.5,3.57582948]
[1733199891893,0.7606,3657.1,3656.5,0.84097948]
[1733199892192,0.7606,3657.1,3656.5,0.93112124]
[1733199892503,0.7606,3657.1,3656.6,0.04754677]
[1733199892672,2.63184423,3657.2,3656.6,0.04754677]
[1733199894464,0.25542412,3657.1,3656.6,0.04754677]
[1733199895100,2.63184423,3657.2,3656.5,0.93112124]
[1733199895392,2.63184423,3657.2,3656.6,0.41378879]
[1733199895556,0.25541773,3657.1,3656.6,0.41378879]
[1733199895759,0.25541773,3657.1,3657.0,0.54152433]
[1733199896011,2.88726196,3657.1,3657.0,0.54152433]
[1733199897603,2.63184423,3657.1,3657.0,0.54152433]
[1733199897824,2.63184423,3657.1,3657.0,0.58857017]
[1733199898326,2.88736732,3657.1,3657.0,0.58857017]
[1733199898522,2.63184423,3657.1,3657.0,0.58857017]
[1733199898829,2.88736743,3657.1,3657.0,0.58857017]
[1733199899029,2.88736743,3657.1,3657.0,4.09535017]
[1733199899030,0.2555232,3657.1,3657.0,4.09535017]
[1733199899227,0.25547162,3658.2,3657.7,0.7723]
[1733199899389,0.25547162,3658.5,3657.7,0.7723]
[1733199899584,0.25547162,3658.5,3657.8,0.04657409]
[1733199900425,0.25547162,3658.4,3657.8,0.04657409]
[1733199900596,0.25547162,3658.5,3657.8,0.04657409]
[1733199900797,0.25557017,3658.5,3657.8,0.4018715]
[1733199901204,0.25557017,3658.4,3657.8,0.4018715]
[1733199901410,1.08337017,3658.6,3657.8,0.4018715]
[1733199901632,3.81669017,3658.6,3657.8,0.4018715]
[1733199901833,0.25557017,3658.5,3657.8,0.04657409]
[1733199901987,3.81667017,3658.6,3657.7,0.7723]
[1733199902184,0.25557017,3658.5,3657.8,0.04552414]
[1733199902527,0.8278,3658.6,3657.8,0.04552414]
[1733199903095,0.7864,3658.3,3657.8,0.04552414]
[1733199903435,3.51992,3658.3,3657.9,0.0454321]
[1733199903728,4.39035186,3658.3,3657.2,3.0]
[1733199904040,2.73359,3658.2,3658.0,0.53882664]
[1733199904325,2.76298818,3658.2,3658.0,0.53882664]
[1733199906342,2.73411,3657.5,3656.8,0.8139]
[1733199906571,2.63184423,3657.4,3657.2,0.53652864]
[1733199906914,5.36602423,3657.4,3657.2,0.53652864]
[1733199907117,2.63184423,3657.4,3657.2,0.53652864]
[1733199908443,6.13612423,3657.4,3657.3,0.04590221]
[1733199908740,4.01555665,3657.4,3656.7,0.55442022]
[1733199909082,2.73434,3657.2,3656.8,0.04606573]
[1733199909350,2.73434,3657.2,3656.7,0.55442022]
[1733199909527,2.73434,3657.2,3656.2,0.7713]
[1733199909742,2.73434,3657.2,3656.8,0.04606573]
[1733199910039,2.73434,3657.2,3656.2,0.7713]
[1733199910253,4.01555665,3657.4,3656.5,0.559635]
[1733199910254,2.73446,3657.1,3656.5,0.559635]
[1733199910451,2.73433,3657.2,3656.5,0.559635]
[1733199910654,0.55,3657.3,3656.6,0.04693036]
[1733199910951,0.80540256,3657.3,3656.6,0.04693036]
[1733199911125,3.53967256,3657.3,3656.6,0.04693036]
[1733199911331,4.03979292,3657.3,3656.6,0.04693036]
[1733199911745,1.30552292,3657.3,3656.6,0.04693036]
[1733199911932,2.73433,3657.2,3656.6,0.04693036]
[1733199912519,1.30552292,3657.3,3656.6,0.04693036]
[1733199912740,4.29527065,3657.3,3656.5,0.559635]
[1733199912950,0.25543773,3657.2,3656.7,0.04694333]
[1733199913158,1.02515922,3657.2,3656.6,0.04697604]
[1733199913329,3.50406149,3657.2,3656.8,0.04691062]
[1733199913652,3.50406149,3657.2,3656.5,0.559635]
[1733199914059,3.50406149,3657.2,3656.6,0.04694863]
[1733199914322,3.50406149,3657.2,3656.5,0.559635]
[1733199914521,3.50406149,3657.2,3656.7,0.04691592]
[1733199914761,0.74560057,3657.1,3656.5,0.559635]
[1733199914966,0.74560057,3657.1,3656.8,0.04688321]
[1733199915263,0.74560057,3657.1,3656.5,0.559635]
[1733199915878,3.46344423,3657.8,3656.7,0.8253]
[1733199916027,0.25548265,3657.7,3656.7,0.8253]
[1733199916233,0.25548265,3657.6,3656.8,0.04681469]
[1733199916452,2.98943265,3657.7,3656.8,0.04681469]
[1733199916638,0.25548265,3657.6,3656.8,0.04681469]
[1733199916968,2.66124241,3658.2,3656.8,0.46345966]
[1733199917179,0.25548368,3658.1,3657.2,0.7811]
[1733199917481,0.25548368,3658.1,3657.3,0.04652328]
[1733199917630,3.54385,3658.0,3657.3,0.04652328]
[1733199918053,0.25548368,3657.9,3657.3,0.04652328]
[1733199920149,2.63184423,3657.8,3657.3,0.04652328]
[1733199921056,5.36573423,3657.8,3657.3,0.04652328]
[1733199921260,2.73395,3657.7,3657.3,0.04652328]
[1733199921459,2.9895055,3657.7,3657.3,0.04652328]
[1733199921756,2.73395,3657.7,3656.9,0.7941]
[1733199921962,2.63184423,3657.5,3657.4,0.04648145]
[1733199922156,2.63184423,3657.5,3657.0,0.5479287]
[1733199922868,5.36601423,3657.5,3657.1,0.04628268]
[1733199924131,2.73426,3657.3,3657.1,0.04628268]
[1733199924375,2.73433,3657.2,3657.1,0.04628268]
[1733199924587,0.53661742,3657.2,3657.0,0.5479287]
[1733199924884,0.53661742,3657.2,3656.3,0.7755]
[1733199924885,5.36631423,3657.1,3656.3,0.7755]
[1733199925338,5.36631423,3657.1,3656.4,0.04652991]
[1733199925782,2.73448,3657.0,3656.4,0.04652991]
[1733199926147,2.73485,3656.5,3656.4,0.04652991]
[1733199926477,3.27151942,3656.5,3655.7,0.7631]
[1733199926781,2.73485,3656.5,3655.7,0.7631]
[1733199927136,2.63184423,3656.7,3655.8,2.73537]
[1733199927473,2.63184423,3656.7,3656.0,0.7594]
[1733199927861,2.63184423,3656.7,3656.1,0.0451125]
[1733199930265,2.63184423,3657.1,3656.2,3.49985]
[1733199930457,2.63184423,3657.1,3656.3,0.35723135]
[1733199930788,2.63184423,3657.1,3656.3,0.40227841]
[1733199931193,2.63184423,3657.1,3656.4,0.7648]
[1733199931489,2.63184423,3657.1,3656.5,0.04498163]
[1733199931883,2.63184423,3657.1,3656.5,0.07317557]
[1733199932195,2.99009365,3657.0,3656.5,0.07317557]
[1733199932401,2.73448,3657.0,3656.5,0.07317557]
[1733199932696,2.73448,3657.0,3656.6,0.07317557]
[1733199932697,2.63184423,3656.7,3656.6,0.07317557]
[1733199933068,2.88752046,3656.7,3655.9,0.8234]
[1733199933249,2.7349,3656.5,3655.9,0.8234]
[1733199933454,2.63184423,3656.7,3656.0,0.0733765]
[1733199933455,5.36655423,3656.7,3656.0,0.0733765]
[1733199934659,2.63184423,3656.7,3656.0,0.0733765]
[1733199934853,2.73478,3656.6,3656.0,0.0733765]
[1733199935675,2.73488,3656.5,3656.0,0.0733765]
[1733199935870,2.73497,3656.4,3656.0,0.0733765]
[1733199936371,2.7348,3656.6,3656.0,0.0733765]
[1733199936798,0.25581146,3656.5,3656.0,0.0733765]
[1733199937116,0.25581146,3656.5,3656.3,0.5569986]
[1733199937687,2.99069146,3656.5,3656.3,0.5569986]
[1733199937885,2.73488,3656.5,3656.3,0.5569986]
[1733199939607,2.73488,3656.5,3655.9,0.8234]
[1733199939971,2.73488,3656.5,3656.0,0.073911]
[1733199940169,2.63184423,3656.3,3656.0,0.073911]
[1733199940371,5.36687423,3656.3,3656.0,0.073911]
[1733199940572,5.36687423,3656.3,3655.7,0.55710809]
[1733199940992,5.36687423,3656.3,3655.8,0.07155397]
[1733199941579,2.63184423,3656.3,3655.8,0.07155397]
[1733199942314,2.63184423,3656.7,3656.0,0.7985]
[1733199942608,0.25563355,3656.6,3656.0,0.7985]
[1733199942799,0.25563355,3656.6,3656.1,0.06911137]
[1733199943116,0.25563355,3656.6,3656.0,0.7985]
[1733199943581,0.25563355,3656.6,3656.1,0.06911137]
[1733199943914,0.25563355,3656.6,3656.0,0.7985]
[1733199944291,0.25563355,3656.6,3656.1,0.06911137]
[1733199944695,0.25563355,3656.6,3656.0,0.7985]
[1733199944876,0.25563355,3656.6,3656.2,0.06957124]
[1733199945077,2.99042355,3656.6,3656.1,0.06960473]
[1733199945277,2.73479,3656.6,3656.3,0.06953775]
[1733199945476,2.99045952,3656.5,3656.2,0.06957124]
[1733199945673,2.73471,3656.7,3656.0,0.7985]
[1733199945904,2.99038346,3656.6,3656.3,0.06953775]
[1733199946221,2.99038346,3656.6,3656.0,0.7985]
[1733199946222,0.25558346,3656.5,3656.0,0.7985]
[1733199946609,0.25557984,3656.6,3656.0,0.7985]
[1733199946919,0.25557984,3656.6,3656.1,0.06960473]
[1733199947825,2.63184423,3656.7,3656.1,0.06960473]
[1733199948023,0.25563885,3656.6,3656.1,0.06960473]
[1733199949730,0.25575382,3656.6,3656.1,0.06960473]
[1733199950827,0.25575382,3656.5,3656.1,0.06960473]
[1733199950997,2.63184423,3656.2,3656.1,0.06960473]
[1733199951198,2.88759805,3656.2,3656.1,0.06960473]
[1733199951411,2.73528,3656.0,3655.4,0.7645]
[1733199951603,2.63184423,3655.8,3655.4,0.7645]
[1733199951801,0.25594421,3655.7,3655.5,0.06978288]
[1733199952001,0.25594421,3655.7,3655.6,0.54421134]
[1733199952418,0.25594421,3655.7,3655.6,0.61170353]
[1733199952792,0.25594421,3655.7,3655.6,0.06749219]
[1733199952989,3.36080305,3655.7,3655.6,0.06749219]
[1733199953334,2.73563,3655.5,3655.0,0.7645]
[1733199953540,2.63184423,3655.3,3655.0,0.7645]
[1733199954896,2.63184423,3655.3,3655.1,0.03826155]
[1733199955096,2.63184423,3655.3,3655.1,0.06667979]
[1733199955742,4.01275778,3655.3,3655.1,0.06667979]
[1733199955898,2.99160847,3655.2,3655.1,0.06667979]
[1733199956099,2.99160847,3655.2,3654.6,0.821]
[1733199956422,2.73591,3655.1,3654.6,0.821]
[1733199956731,2.73591,3655.1,3654.7,0.06681385]
[1733199956934,2.73606,3654.9,3654.7,0.06681385]
[1733199957137,5.36790423,3654.9,3654.7,0.06681385]
[1733199957301,5.36790423,3654.9,3654.5,0.53864604]
[1733199957737,5.36790423,3654.9,3654.6,0.06684737]
[1733199957899,2.63184423,3654.9,3654.6,0.06684737]
[1733199958095,2.63184423,3654.9,3654.5,0.53864604]
[1733199958826,2.63184423,3654.9,3654.6,0.06684737]
[1733199959439,2.63184423,3654.9,3654.5,0.53864604]
[1733199959744,2.63184423,3654.9,3654.6,0.06684737]
[1733199961100,3.23610533,3654.9,3654.6,0.06684737]
[1733199961402,3.23610533,3654.9,3654.5,0.53864604]
[1733199961829,2.63184423,3654.9,3654.5,0.53864604]
[1733199962040,2.63184423,3654.9,3654.6,0.06684737]
[1733199963602,2.63184423,3654.9,3654.5,0.53864604]
[1733199963808,2.63184423,3654.9,3654.7,0.06731211]
[1733199964029,2.63184423,3654.9,3654.8,0.0672786]
[1733199964341,2.63184423,3654.9,3654.5,0.53864604]
[1733199964637,2.63184423,3654.9,3654.8,0.0672786]
[1733199964808,3.16861865,3654.9,3654.5,0.53864604]
[1733199965232,3.16861865,3654.9,3654.6,0.06734563]
[1733199965820,2.63184423,3655.3,3654.7,0.7778]
[1733199966135,2.63184423,3655.3,3654.8,0.0672786]
[1733199969269,2.63184423,3654.9,3654.8,0.0672786]
[1733199969414,3.16862565,3654.9,3654.8,0.0672786]
[1733199969751,3.16862565,3654.9,3654.5,0.53864604]
[1733199970131,3.16862565,3654.9,3654.6,0.0678347]
[1733199970943,3.16862565,3654.9,3654.7,0.06780118]
[1733199971249,2.63184423,3654.9,3654.5,0.53864604]
[1733199971745,2.63184423,3654.9,3654.6,0.0678347]
[1733199974137,2.63184423,3654.9,3654.4,0.8297]
[1733199974471,2.63184423,3654.9,3654.7,0.06780118]
[1733199974770,2.63184423,3654.9,3654.4,1.38484477]
[1733199975071,3.16862765,3654.9,3654.8,0.06776767]
[1733199975277,3.16862765,3654.9,3654.4,1.38484477]
[1733199975471,3.16862765,3654.9,3654.5,0.06786823]
[1733199976482,2.63184423,3654.9,3654.5,0.06786823]
[1733199977344,6.15422423,3655.3,3654.5,0.06786823]
[1733199977669,0.25563499,3655.2,3654.5,0.06786823]
[1733199979373,0.25563499,3655.1,3654.5,0.06786823]
[1733199979580,0.25563499,3655.2,3654.5,0.06786823]
[1733199979877,0.25563499,3655.1,3654.5,0.06786823]
[1733199980168,0.25563499,3655.0,3654.5,0.06786823]
[1733199980343,0.25563499,3654.9,3654.5,0.06786823]
[1733199980548,0.40983146,3655.2,3654.5,0.06786823]
[1733199980747,0.25614319,3655.1,3654.5,0.06786823]
[1733199980939,2.73601,3655.0,3654.5,0.06786823]
[1733199981141,0.25614319,3654.9,3654.5,0.06786823]
[1733199981371,0.25614319,3654.8,3654.5,0.06786823]
[1733199981580,1.1871453,3654.6,3654.5,0.06786823]
[1733199982473,1.44355685,3654.6,3654.5,0.06786823]
[1733199983743,0.40983146,3655.1,3654.5,0.86486823]
[1733199983947,0.25643814,3655.0,3654.5,0.86486823]
[1733199984234,5.36632605,3655.2,3654.5,0.86486823]
[1733199984551,0.2564571,3654.9,3654.5,0.86486823]
[1733199984746,0.41033137,3655.0,3654.5,0.86486823]
[1733199984951,0.2564571,3654.9,3654.5,0.86486823]
[1733199985148,0.2564571,3654.8,3654.5,0.86486823]
[1733199985459,0.2564571,3654.7,3654.5,0.86486823]
[1733199985663,0.25651256,3654.6,3654.5,0.84284702]
[1733199985862,0.25651256,3654.6,3654.5,0.797]
[1733199986786,0.25651256,3654.6,3654.5,0.86213655]
[1733199987961,0.41041137,3655.0,3654.5,0.86213655]
[1733199988163,0.66692016,3654.9,3654.5,0.86213655]
[1733199988378,0.25650879,3654.8,3654.5,0.86213655]
[1733199988684,2.73601,3655.0,3654.5,0.86213655]
[1733199988685,0.25650879,3654.7,3654.5,0.86213655]
[1733199988883,0.25650879,3654.6,3654.5,0.86213655]
[1733199989749,0.25650879,3654.6,3654.5,0.06513655]
[1733199991051,0.41041137,3655.0,3654.6,0.7795]
[1733199991287,0.25649503,3654.9,3654.6,0.7795]
[1733199991487,0.25649503,3654.8,3654.7,0.06506951]
[1733199992294,2.63050605,3655.2,3654.7,0.06506951]
[1733199992462,0.25649731,3654.8,3654.7,0.06506951]
[1733199992853,0.25649731,3654.8,3654.4,0.55514477]
[1733199993050,0.25649731,3654.7,3654.4,0.55514477]
[1733199993254,0.25649731,3654.6,3654.5,0.06513655]
[1733199993991,0.25648799,3654.6,3654.5,0.06513655]
[1733199994193,0.25647492,3654.9,3654.6,3.51577]
[1733199994359,0.41038085,3655.5,3654.6,3.51577]
[1733199994699,2.63050605,3655.6,3654.6,3.51577]
[1733199994700,0.66682569,3655.4,3654.7,0.06508321]
[1733199994888,0.25644484,3655.3,3654.7,0.06508321]
[1733199995258,0.41038085,3655.5,3654.7,0.06508321]
[1733199995259,0.25644484,3655.2,3654.7,0.06508321]
[1733199995470,0.25644484,3655.1,3654.7,0.06508321]
[1733199995674,5.36609605,3655.6,3654.7,0.06508321]
[1733199995873,0.61581961,3655.5,3654.7,0.06508321]
[1733199996099,0.87222134,3655.5,3654.7,0.06508321]
[1733199996265,0.25640173,3655.4,3654.7,0.06508321]
[1733199997204,0.25640173,3655.3,3654.7,0.06508321]
[1733199997604,0.25640173,3655.2,3654.7,0.06508321]
[1733199997783,0.25640173,3655.1,3654.7,0.06508321]
[1733199997981,3.14585172,3655.5,3654.7,0.06508321]
[1733199998174,0.66658948,3655.4,3654.7,0.06508321]
[1733199998369,0.25634776,3655.3,3654.7,0.06508321]
[1733199998579,0.25634776,3655.2,3654.7,0.06508321]
[1733199998875,0.25634776,3655.1,3654.7,0.06508321]
[1733199999095,0.41024172,3655.5,3654.7,0.06508321]
[1733199999292,0.25633037,3655.4,3654.7,2.80128321]
[1733199999473,0.25633037,3655.3,3654.8,0.8107]
[1733199999810,0.25633037,3655.2,3654.9,0.06501618]
[1733200000107,2.73564,3655.5,3654.8,0.8107]
[1733200000306,2.63050605,3655.2,3655.0,0.06498266]
[1733200000509,0.2563027,3655.1,3654.8,0.8107]
[1733200000813,0.25628362,3655.0,3654.8,0.8107]
[1733200001011,2.63050605,3655.2,3654.8,0.8107]
[1733200001213,0.25628581,3655.1,3654.8,0.8107]
[1733200001420,2.63050605,3655.2,3654.8,0.8107]
[1733200001575,6.00550105,3655.2,3654.5,0.8107]
[1733200001887,0.25627428,3655.1,3654.5,0.8107]
[1733200002286,0.25627428,3655.0,3654.5,0.8107]
[1733200002500,0.25627428,3654.9,3654.5,0.8107]
[1733200002818,0.25629941,3654.8,3654.5,0.8107]
[1733200003033,3.14597627,3655.1,3654.5,0.8107]
[1733200003190,0.97303318,3655.0,3654.5,0.8107]
[1733200003395,0.25630045,3654.9,3654.5,0.8107]
[1733200003612,0.25630267,3654.8,3654.5,0.8107]
[1733200003824,0.71673273,3655.0,3654.5,0.8107]
[1733200004021,0.25630288,3654.9,3654.5,0.8107]
[1733200004291,0.71673273,3655.0,3654.5,0.8107]
[1733200004498,0.25630731,3654.9,3654.5,0.8107]
[1733200004733,0.71673273,3655.0,3654.5,0.8107]
[1733200004909,0.25630722,3654.9,3654.5,0.8107]
[1733200005092,0.71673273,3655.0,3654.5,0.8107]
[1733200005289,0.25630692,3654.9,3654.5,0.8107]
[1733200005494,0.71673273,3655.0,3654.5,0.8107]
[1733200005694,0.25630619,3654.9,3654.5,0.8107]
[1733200005896,0.71673273,3655.0,3654.5,0.8107]
[1733200006090,0.25631201,3654.8,3654.5,0.8107]
[1733200006291,0.71673273,3655.0,3654.5,0.8107]
[1733200006521,0.96954104,3654.9,3654.5,0.8107]
[1733200006691,0.25631427,3654.8,3654.6,0.0651213]
[1733200006910,0.7132313,3654.9,3654.6,0.0651213]